fUST/lending_fUST_20250313
["ID","MTS","AMOUNT","RATE_DAILY","PERIOD"]
[356012248,1741795523798,-189.44425169,0.00016147,2]
[356012258,1741795654980,1000.0,0.00016022,2]
[356012259,1741795668428,1000.0,0.00016022,2]
[356012296,1741795835216,-622.2,0.00016147,2]
[356012297,1741795835227,-300.0,0.00016155,2]
[356012298,1741795835237,-500.0,0.00016156,2]
[356012299,1741795835246,-186.44915053,0.00016156,2]
[356012300,1741795835255,-500.0,0.00016156,2]
[356012301,1741795835265,-285.90357898,0.00016156,2]
[356012302,1741795835274,-646.84766222,0.00016156,2]
[356012303,1741795835283,-500.0,0.00016156,2]
[356012304,1741795835292,-500.0,0.00016156,2]
[356012305,1741795835301,-69500.47778521,0.00016157,2]
[356012306,1741795835313,-23191.45683469,0.00016157,2]
[356012307,1741795835361,-36285.95855386,0.00016157,2]
[356012329,1741795837722,-93022.10682624,0.00016157,2]
[356012330,1741795837733,-434.62368886,0.000169,2]
[356012331,1741795837743,-189.35435379,0.000169,2]
[356012332,1741795837753,-535.72,0.00017,2]
[356012333,1741795837764,-600.86764469,0.0001746,2]
[356012334,1741795837774,-151.0,0.000176,2]
[356012335,1741795837784,-1000.0,0.000176,2]
[356012336,1741795837794,-420.0,0.0001766,2]
[356012337,1741795837804,-2033.0,0.000179,2]
[356012338,1741795837814,-300.0,0.000179,7]
[356012339,1741795837827,-151.0,0.000184,2]
[356012340,1741795837837,-1241.8847696,0.00018528,2]
[356012341,1741795837847,-151.0,0.000191,2]
[356012342,1741795837858,-588.65597144,0.000192,2]
[356012343,1741795837870,-587.0,0.00019305,2]
[356012344,1741795837881,-300.0,0.000194,8]
[356012345,1741795837892,-151.0,0.000199,2]
[356012346,1741795837902,-151.0,0.000206,3]
[356012347,1741795837914,-300.0,0.000209,9]
[356012348,1741795837924,-2256.263,0.00020953,2]
[356012349,1741795837934,-398.0,0.00020998,2]
[356012350,1741795837945,-398.0,0.00020998,2]
[356012351,1741795837957,-500.0,0.00021,2]
[356012352,1741795837968,-810.72619875,0.00021,2]
[356012353,1741795837978,-644.65285909,0.00021,2]
[356012354,1741795837988,-500.0,0.00021,2]
[356012355,1741795837998,-500.0,0.00021,2]
[356012356,1741795838009,-500.0,0.00021,2]
[356012357,1741795838018,-500.0,0.00021,2]
[356012358,1741795838028,-500.0,0.00021,2]
[356012359,1741795838038,-684.68422281,0.00021,2]
[356012360,1741795838048,-2999.999999,0.00021,2]
[356012361,1741795838059,-823.0,0.00021103,2]
[356012362,1741795838072,-186.0,0.00021126,2]
[356012363,1741795838082,-150.0,0.00021181,2]
[356012364,1741795838091,-1920.0,0.00021181,2]
[356012365,1741795838102,-540.0,0.00021181,2]
[356012366,1741795838111,-2272.0,0.00021181,2]
[356012367,1741795838122,-151.0,0.000213,4]
[356012368,1741795838383,-518.10807815,0.00021917,2]
[356012369,1741795838393,-500.0,0.00021917,2]
[356012370,1741795838403,-500.0,0.00021917,2]
[356012371,1741795838412,-500.0,0.00021917,2]
[356012372,1741795838422,-623.93223261,0.00021917,2]
[356012373,1741795838431,-503.56992451,0.00021917,2]
[356012374,1741795838441,-500.0,0.00021917,2]
[356012375,1741795838451,-500.0,0.00021917,2]
[356012376,1741795838460,-500.0,0.00021917,2]
[356012377,1741795838470,-500.0,0.00021917,2]
[356012378,1741795838480,-270.838071,0.00021917,2]
[356012379,1741795838490,-500.0,0.00021917,2]
[356012380,1741795838500,-501.36794225,0.00021917,2]
[356012381,1741795838510,-500.0,0.00021917,2]
[356012382,1741795838519,-421.31979836,0.00021917,2]
[356012383,1741795838529,-500.0,0.00021917,2]
[356012384,1741795838539,-500.0,0.00021917,2]
[356012385,1741795838549,-503.17715585,0.00021917,2]
[356012386,1741795838559,-500.0,0.00021917,2]
[356012387,1741795838570,-502.55512563,0.00021917,2]
[356012388,1741795838580,-502.58766362,0.00021917,2]
[356012389,1741795838590,-501.08823221,0.00021917,2]
[356012390,1741795838600,-500.0,0.00021917,2]
[356012391,1741795838610,-500.0,0.00021917,2]
[356012392,1741795838620,-508.40729306,0.00021917,2]
[356012393,1741795838630,-500.0,0.00021917,2]
[356012394,1741795838640,-501.57721571,0.00021917,2]
[356012395,1741795838650,-500.0,0.00021917,2]
[356012396,1741795838660,-500.0,0.00021917,2]
[356012397,1741795838670,-500.0,0.00021917,2]
[356012398,1741795838679,-500.0,0.00021917,2]
[356012399,1741795838689,-510.64584715,0.00021917,2]
[356012400,1741795838699,-504.06902287,0.00021917,2]
[356012401,1741795838709,-508.49755987,0.00021917,2]
[356012402,1741795838719,-500.0,0.00021917,2]
[356012403,1741795838728,-500.0,0.00021917,2]
[356012404,1741795838738,-502.24818389,0.00021917,2]
[356012405,1741795838747,-500.0,0.00021917,2]
[356012406,1741795838757,-500.0,0.00021917,2]
[356012407,1741795838768,-500.0,0.00021917,2]
[356012408,1741795838779,-500.0,0.00021917,2]
[356012409,1741795838788,-500.0,0.00021917,2]
[356012410,1741795838798,-620.10195141,0.00021917,2]
[356012411,1741795838808,-500.0,0.00021917,2]
[356012412,1741795838818,-500.0,0.00021917,2]
[356012413,1741795838829,-500.0,0.00021917,2]
[356012414,1741795838839,-500.0,0.00021917,2]
[356012415,1741795838850,-500.0,0.00021917,2]
[356012416,1741795838864,-504.85020491,0.00021917,2]
[356012417,1741795838874,-500.0,0.00021917,2]
[356012418,1741795838884,-500.0,0.00021917,2]
[356012419,1741795838894,-500.0,0.00021917,2]
[356012420,1741795838905,-500.0,0.00021917,2]
[356012421,1741795838914,-500.0,0.00021917,2]
[356012422,1741795838924,-500.0,0.00021917,2]
[356012423,1741795838933,-500.0,0.00021917,2]
[356012424,1741795838945,-500.0,0.00021917,2]
[356012425,1741795838954,-500.0,0.00021917,2]
[356012426,1741795838964,-420.7765298,0.00021917,2]
[356012427,1741795838974,-500.0,0.00021917,2]
[356012428,1741795838984,-500.0,0.00021917,2]
[356012429,1741795838994,-503.50906683,0.00021917,2]
[356012430,1741795839004,-500.0,0.00021917,2]
[356012431,1741795839014,-500.0,0.00021917,2]
[356012432,1741795839025,-500.0,0.00021917,2]
[356012433,1741795839035,-328.94604777,0.00021917,2]
[356012434,1741795839045,-500.0,0.00021917,2]
[356012435,1741795839055,-1683.55,0.00021917,2]
[356012436,1741795839064,-506.45226536,0.00021917,2]
[356012437,1741795839075,-516.07149766,0.00021917,2]
[356012438,1741795839085,-500.0,0.00021917,2]
[356012439,1741795839095,-386.11062339,0.00021917,2]
[356012440,1741795839104,-500.0,0.00021917,2]
[356012441,1741795839115,-494.59,0.00021917,2]
[356012442,1741795839124,-500.0,0.00021917,2]
[356012443,1741795839134,-500.0,0.00021917,2]
[356012444,1741795839144,-500.0,0.00021917,2]
[356012445,1741795839154,-513.02273915,0.00021917,2]
[356012446,1741795839163,-500.85932994,0.00021917,2]
[356012447,1741795839173,-520.50517129,0.00021917,2]
[356012448,1741795839183,-500.0,0.00021917,2]
[356012449,1741795839193,-500.0,0.00021917,2]
[356012450,1741795839205,-500.0,0.00021917,2]
[356012451,1741795839215,-500.0,0.00021917,2]
[356012452,1741795839225,-500.0,0.00021917,2]
[356012453,1741795839234,-500.0,0.00021917,2]
[356012454,1741795839244,-500.0,0.00021917,2]
[356012455,1741795839254,-440.25150873,0.00021917,2]
[356012457,1741795839264,-500.0,0.00021917,2]
[356012458,1741795839274,-500.0,0.00021917,2]
[356012459,1741795839285,-500.0,0.00021917,2]
[356012460,1741795839296,-500.0,0.00021917,2]
[356012461,1741795839306,-500.0,0.00021917,2]
[356012462,1741795839317,-500.0,0.00021917,2]
[356012463,1741795839329,-500.0,0.00021917,2]
[356012464,1741795839339,-500.0,0.00021917,2]
[356012465,1741795839349,-500.0,0.00021917,2]
[356012466,1741795839359,-508.32868218,0.00021917,2]
[356012467,1741795839369,-500.0,0.00021917,2]
[356012468,1741795839379,-500.0,0.00021917,2]
[356012469,1741795839389,-500.0,0.00021917,2]
[356012470,1741795839399,-516.58,0.00021917,2]
[356012471,1741795839410,-603.15,0.00021917,2]
[356012473,1741795839421,-500.0,0.00021917,2]
[356012474,1741795839431,-500.0,0.00021917,2]
[356012475,1741795839441,-500.0,0.00021917,2]
[356012476,1741795839451,-500.0,0.00021917,2]
[356012477,1741795839460,-500.0,0.00021917,2]
[356012478,1741795839469,-500.0,0.00021917,2]
[356012479,1741795839479,-500.0,0.00021917,2]
[356012480,1741795839489,-500.0,0.00021917,2]
[356012481,1741795839499,-500.0,0.00021917,2]
[356012483,1741795839509,-313.66917543,0.00021917,2]
[356012484,1741795839519,-500.0,0.00021917,2]
[356012485,1741795839529,-500.0,0.00021917,2]
[356012486,1741795839540,-514.75,0.00021917,2]
[356012487,1741795839550,-647.85181414,0.00021917,2]
[356012488,1741795839560,-500.0,0.00021917,2]
[356012489,1741795839570,-512.03991349,0.00021917,2]
[356012490,1741795839579,-500.0,0.00021917,2]
[356012492,1741795839589,-827.3,0.00021917,2]
[356012493,1741795839599,-830.78,0.00021917,2]
[356012495,1741795839608,-500.0,0.00021917,2]
[356012496,1741795839618,-595.51670173,0.00021917,2]
[356012497,1741795839629,-500.0,0.00021917,2]
[356012498,1741795839639,-500.0,0.00021917,2]
[356012499,1741795839649,-500.0,0.00021917,2]
[356012500,1741795839659,-500.0,0.00021917,2]
[356012501,1741795839670,-428.4761151,0.00021917,2]
[356012502,1741795839679,-500.0,0.00021917,2]
[356012503,1741795839689,-500.0,0.00021917,2]
[356012504,1741795839699,-500.0,0.00021917,2]
[356012505,1741795839709,-500.0,0.00021917,2]
[356012506,1741795839719,-500.0,0.00021917,2]
[356012507,1741795839729,-500.0,0.00021917,2]
[356012508,1741795839738,-500.0,0.00021917,2]
[356012509,1741795839748,-500.0,0.00021917,2]
[356012510,1741795839758,-502.8315158,0.00021917,2]
[356012511,1741795839767,-500.0,0.00021917,2]
[356012512,1741795839779,-509.3799871,0.00021917,2]
[356012514,1741795839788,-500.0,0.00021917,2]
[356012515,1741795839798,-500.0,0.00021917,2]
[356012517,1741795839808,-500.0,0.00021917,2]
[356012519,1741795839817,-500.0,0.00021917,2]
[356012520,1741795839830,-736.29,0.00021917,2]
[356012521,1741795839839,-500.0,0.00021917,2]
[356012522,1741795839848,-500.0,0.00021917,2]
[356012523,1741795839858,-500.0,0.00021917,2]
[356012524,1741795839869,-500.0,0.00021917,2]
[356012525,1741795839880,-500.0,0.00021917,2]
[356012526,1741795839890,-500.0,0.00021917,2]
[356012527,1741795839900,-621.34205604,0.00021917,2]
[356012528,1741795839911,-500.0,0.00021917,2]
[356012529,1741795839921,-500.0,0.00021917,2]
[356012530,1741795839930,-1483.93,0.00021917,2]
[356012531,1741795839940,-619.57,0.00021917,2]
[356012532,1741795839951,-500.0,0.00021917,2]
[356012533,1741795839961,-500.0,0.00021917,2]
[356012534,1741795839971,-500.0,0.00021917,2]
[356012535,1741795839980,-500.0,0.00021917,2]
[356012536,1741795839990,-500.0,0.00021917,2]
[356012537,1741795839999,-1186.04,0.00021917,2]
[356012538,1741795840009,-500.0,0.00021917,2]
[356012539,1741795840018,-500.0,0.00021917,2]
[356012540,1741795840028,-500.0,0.00021917,2]
[356012541,1741795840038,-500.0,0.00021917,2]
[356012542,1741795840048,-160.31971926,0.00021917,2]
[356012543,1741795840058,-500.0,0.00021917,2]
[356012544,1741795840068,-500.0,0.00021917,2]
[356012545,1741795840080,-500.0,0.00021917,2]
[356012546,1741795840091,-500.0,0.00021917,2]
[356012547,1741795840100,-500.0,0.00021917,2]
[356012548,1741795840109,-500.0,0.00021917,2]
[356012549,1741795840119,-501.74341373,0.00021917,2]
[356012550,1741795840129,-500.0,0.00021917,2]
[356012551,1741795840139,-500.0,0.00021917,2]
[356012552,1741795840149,-500.0,0.00021917,2]
[356012553,1741795840158,-514.82313136,0.00021917,2]
[356012554,1741795840168,-500.0,0.00021917,2]
[356012555,1741795840178,-500.0,0.00021917,2]
[356012556,1741795840188,-501.96633861,0.00021917,2]
[356012557,1741795840197,-500.0,0.00021917,2]
[356012558,1741795840207,-500.0,0.00021917,2]
[356012559,1741795840216,-500.0,0.00021917,2]
[356012560,1741795840226,-500.0,0.00021917,2]
[356012561,1741795840236,-500.0,0.00021917,2]
[356012562,1741795840245,-500.0,0.00021917,2]
[356012563,1741795840255,-505.97256253,0.00021917,2]
[356012564,1741795840266,-500.0,0.00021917,2]
[356012565,1741795840276,-720.19,0.00021917,2]
[356012566,1741795840285,-500.0,0.00021917,2]
[356012567,1741795840295,-500.0,0.00021917,2]
[356012568,1741795840305,-500.0,0.00021917,2]
[356012569,1741795840314,-508.88319553,0.00021917,2]
[356012570,1741795840325,-500.0,0.00021917,2]
[356012571,1741795840334,-500.0,0.00021917,2]
[356012572,1741795840344,-500.0,0.00021917,2]
[356012573,1741795840354,-500.0,0.00021917,2]
[356012574,1741795840363,-508.23769914,0.00021917,2]
[356012575,1741795840373,-500.0,0.00021917,2]
[356012576,1741795840382,-500.0,0.00021917,2]
[356012577,1741795840392,-500.0,0.00021917,2]
[356012578,1741795840401,-500.0,0.00021917,2]
[356012579,1741795840411,-513.8267618,0.00021917,2]
[356012580,1741795840420,-500.0,0.00021917,2]
[356012581,1741795840430,-500.0,0.00021917,2]
[356012582,1741795840440,-500.0,0.00021917,2]
[356012583,1741795840450,-500.0,0.00021917,2]
[356012584,1741795840460,-500.0,0.00021917,2]
[356012585,1741795840470,-500.0,0.00021917,2]
[356012586,1741795840480,-500.0,0.00021917,2]
[356012587,1741795840490,-855.27,0.00021917,2]
[356012588,1741795840500,-500.0,0.00021917,2]
[356012589,1741795840509,-500.0,0.00021917,2]
[356012590,1741795840519,-523.55,0.00021917,2]
[356012591,1741795840528,-500.0,0.00021917,2]
[356012592,1741795840538,-500.0,0.00021917,2]
[356012593,1741795840548,-500.0,0.00021917,2]
[356012594,1741795840558,-200.0,0.00021917,2]
[356012595,1741795840568,-500.0,0.00021917,2]
[356012596,1741795840579,-1204.51,0.00021917,2]
[356012597,1741795840589,-1204.51,0.00021917,2]
[356012598,1741795840599,-1204.51,0.00021917,2]
[356012599,1741795840608,-1204.51,0.00021917,2]
[356012600,1741795840618,-500.0,0.00021917,2]
[356012601,1741795840627,-1204.51,0.00021917,2]
[356012602,1741795840637,-1204.51,0.00021917,2]
[356012603,1741795840647,-1204.51,0.00021917,2]
[356012604,1741795840657,-500.0,0.00021917,2]
[356012605,1741795840667,-1204.51,0.00021917,2]
[356012606,1741795840676,-1204.51,0.00021917,2]
[356012607,1741795840686,-500.0,0.00021917,2]
[356012608,1741795840696,-1204.51,0.00021917,2]
[356012609,1741795840706,-1204.51,0.00021917,2]
[356012610,1741795840715,-1204.51,0.00021917,2]
[356012611,1741795840725,-1204.51,0.00021917,2]
[356012612,1741795840734,-1204.51,0.00021917,2]
[356012613,1741795840743,-1204.51,0.00021917,2]
[356012614,1741795840754,-516.54522575,0.00021917,2]
[356012615,1741795840764,-919.4,0.00021917,2]
[356012616,1741795840774,-1204.51,0.00021917,2]
[356012617,1741795840784,-520.06858878,0.00021917,2]
[356012618,1741795840793,-1204.51,0.00021917,2]
[356012619,1741795840802,-1204.51,0.00021917,2]
[356012620,1741795840812,-1204.51,0.00021917,2]
[356012621,1741795840822,-1204.51,0.00021917,2]
[356012622,1741795840832,-1204.51,0.00021917,2]
[356012623,1741795840842,-1204.51,0.00021917,2]
[356012624,1741795840851,-508.77110477,0.00021917,2]
[356012625,1741795840862,-1204.51,0.00021917,2]
[356012626,1741795840873,-1204.61212705,0.00021917,2]
[356012627,1741795840883,-500.0,0.00021917,2]
[356012628,1741795840893,-500.0,0.00021917,2]
[356012629,1741795840952,-500.0,0.00021917,2]
[356012630,1741795840962,-1310.03,0.00021917,2]
[356012631,1741795840971,-500.0,0.00021917,2]
[356012632,1741795840981,-500.0,0.00021917,2]
[356012633,1741795840991,-500.0,0.00021917,2]
[356012634,1741795841002,-500.0,0.00021917,2]
[356012635,1741795841012,-863.11,0.00021917,2]
[356012636,1741795841022,-500.0,0.00021917,2]
[356012637,1741795841032,-500.0,0.00021917,2]
[356012638,1741795841041,-500.0,0.00021917,2]
[356012639,1741795841050,-1456.28,0.00021917,2]
[356012640,1741795841059,-500.0,0.00021917,2]
[356012641,1741795841068,-500.0,0.00021917,2]
[356012642,1741795841080,-500.0,0.00021917,2]
[356012643,1741795841089,-502.14129635,0.00021917,2]
[356012644,1741795841098,-2253.86,0.00021917,2]
[356012645,1741795841107,-500.0,0.00021917,2]
[356012646,1741795841117,-500.0,0.00021917,2]
[356012647,1741795841126,-500.0,0.00021917,2]
[356012648,1741795841136,-500.0,0.00021917,2]
[356012649,1741795841145,-754.24,0.00021917,2]
[356012650,1741795841155,-552.26,0.00021917,2]
[356012651,1741795841164,-500.0,0.00021917,2]
[356012652,1741795841174,-500.0,0.00021917,2]
[356012653,1741795841184,-500.0,0.00021917,2]
[356012654,1741795841193,-500.0,0.00021917,2]
[356012655,1741795841203,-501.83585951,0.00021917,2]
[356012656,1741795841213,-500.0,0.00021917,2]
[356012657,1741795841223,-500.0,0.00021917,2]
[356012658,1741795841233,-912.68,0.00021917,2]
[356012659,1741795841243,-504.29042166,0.00021917,2]
[356012660,1741795841252,-500.0,0.00021917,2]
[356012661,1741795841262,-500.0,0.00021917,2]
[356012662,1741795841271,-500.0,0.00021917,2]
[356012663,1741795841281,-500.0,0.00021917,2]
[356012664,1741795841290,-500.0,0.00021917,2]
[356012665,1741795841299,-506.10192912,0.00021917,2]
[356012666,1741795841308,-500.0,0.00021917,2]
[356012667,1741795841318,-500.0,0.00021917,2]
[356012668,1741795841329,-1141.66,0.00021917,2]
[356012669,1741795841338,-500.0,0.00021917,2]
[356012670,1741795841347,-500.0,0.00021917,2]
[356012671,1741795841357,-527.77,0.00021917,2]
[356012672,1741795841367,-500.0,0.00021917,2]
[356012673,1741795841377,-895.56,0.00021917,2]
[356012674,1741795841386,-500.39134433,0.00021917,2]
[356012675,1741795841396,-500.0,0.00021917,2]
[356012676,1741795841406,-500.0,0.00021917,2]
[356012677,1741795841415,-500.0,0.00021917,2]
[356012678,1741795841424,-500.0,0.00021917,2]
[356012679,1741795841434,-500.0,0.00021917,2]
[356012680,1741795841443,-500.0,0.00021917,2]
[356012681,1741795841453,-500.0,0.00021917,2]
[356012682,1741795841463,-500.0,0.00021917,2]
[356012683,1741795841472,-500.0,0.00021917,2]
[356012684,1741795841482,-652.14,0.00021917,2]
[356012685,1741795841491,-500.0,0.00021917,2]
[356012686,1741795841501,-500.0,0.00021917,2]
[356012687,1741795841510,-590.27136488,0.00021917,2]
[356012688,1741795841519,-500.0,0.00021917,2]
[356012689,1741795841529,-851.58,0.00021917,2]
[356012690,1741795841538,-500.0,0.00021917,2]
[356012691,1741795841549,-645.49,0.00021917,2]
[356012692,1741795841559,-500.0,0.00021917,2]
[356012693,1741795841569,-1280.69,0.00021917,2]
[356012694,1741795841580,-500.0,0.00021917,2]
[356012695,1741795841590,-500.0,0.00021917,2]
[356012696,1741795841599,-516.25,0.00021917,2]
[356012697,1741795841611,-644.83,0.00021917,2]
[356012698,1741795841620,-500.0,0.00021917,5]
[356012699,1741795841631,-500.0,0.00021917,2]
[356012700,1741795841641,-514.86665195,0.00021917,2]
[356012701,1741795841651,-500.0,0.00021917,2]
[356012702,1741795841660,-500.0,0.00021917,2]
[356012703,1741795841670,-500.0,0.00021917,2]
[356012704,1741795841680,-500.0,0.00021917,2]
[356012705,1741795841689,-500.0,0.00021917,2]
[356012706,1741795841699,-6107.43,0.00021917,2]
[356012707,1741795841709,-500.0,0.00021917,2]
[356012708,1741795841718,-500.0,0.00021917,2]
[356012709,1741795841728,-602.64338301,0.00021917,2]
[356012710,1741795841737,-1008.33,0.00021917,2]
[356012711,1741795841747,-500.0,0.00021917,2]
[356012712,1741795841756,-500.0,0.00021917,2]
[356012713,1741795841766,-500.0,0.00021917,2]
[356012714,1741795841776,-500.0,0.00021917,2]
[356012715,1741795841785,-500.0,0.00021917,2]
[356012716,1741795841794,-500.0,0.00021917,2]
[356012717,1741795841803,-500.0,0.00021917,2]
[356012718,1741795841813,-500.0,0.00021917,2]
[356012719,1741795841823,-500.0,0.00021917,2]
[356012720,1741795841834,-566.22,0.00021917,2]
[356012721,1741795841843,-500.0,0.00021917,2]
[356012722,1741795841852,-927.4,0.00021917,2]
[356012723,1741795841865,-500.0,0.00021917,2]
[356012724,1741795841875,-500.0,0.00021917,2]
[356012725,1741795841884,-500.00000001,0.00021917,2]
[356012726,1741795841894,-500.0,0.00021917,2]
[356012727,1741795841903,-500.0,0.00021917,2]
[356012728,1741795841914,-305.27899074,0.00021917,2]
[356012729,1741795841924,-500.0,0.00021917,2]
[356012730,1741795841933,-500.0,0.00021917,2]
[356012731,1741795841945,-500.0,0.00021917,2]
[356012732,1741795841955,-500.0,0.00021917,2]
[356012733,1741795841964,-500.0,0.00021917,2]
[356012734,1741795841974,-500.0,0.00021917,2]
[356012735,1741795841983,-500.0,0.00021917,2]
[356012736,1741795841993,-500.0,0.00021917,2]
[356012737,1741795842002,-500.0,0.00021917,2]
[356012738,1741795842012,-500.0,0.00021917,2]
[356012739,1741795842022,-500.0,0.00021917,2]
[356012740,1741795842031,-500.0,0.00021917,2]
[356012741,1741795842040,-2090.98,0.00021917,2]
[356012742,1741795842050,-781.71,0.00021917,2]
[356012743,1741795842060,-500.0,0.00021917,2]
[356012744,1741795842070,-500.0,0.00021917,2]
[356012745,1741795842081,-500.0,0.00021917,2]
[356012746,1741795842090,-500.0,0.00021917,2]
[356012747,1741795842100,-347.15894934,0.00021917,2]
[356012748,1741795842109,-953.17,0.00021917,2]
[356012749,1741795842119,-674.66,0.00021917,2]
[356012750,1741795842128,-500.0,0.00021917,2]
[356012752,1741795842138,-887.98,0.00021917,2]
[356012754,1741795842148,-813.34,0.00021917,2]
[356012755,1741795842157,-549.45826415,0.00021917,2]
[356012756,1741795842167,-500.0,0.00021917,2]
[356012757,1741795842176,-500.0,0.00021917,2]
[356012758,1741795842185,-500.0,0.00021917,2]
[356012759,1741795842195,-500.0,0.00021917,2]
[356012761,1741795842205,-500.0,0.00021917,2]
[356012762,1741795842216,-500.0,0.00021917,2]
[356012763,1741795842225,-500.0,0.00021917,2]
[356012764,1741795842234,-500.0,0.00021917,2]
[356012765,1741795842244,-500.0,0.00021917,2]
[356012766,1741795842253,-890.63,0.00021917,2]
[356012767,1741795842263,-543.6,0.00021917,2]
[356012768,1741795842273,-500.0,0.00021917,2]
[356012769,1741795842283,-500.0,0.00021917,2]
[356012770,1741795842294,-500.0,0.00021917,2]
[356012771,1741795842303,-500.0,0.00021917,2]
[356012772,1741795842313,-500.0,0.00021917,2]
[356012773,1741795842322,-500.0,0.00021917,2]
[356012774,1741795842333,-500.0,0.00021917,2]
[356012775,1741795842343,-529.22,0.00021917,2]
[356012776,1741795842352,-1180.71,0.00021917,2]
[356012778,1741795842361,-500.0,0.00021917,2]
[356012780,1741795842370,-500.0,0.00021917,2]
[356012781,1741795842380,-913.55,0.00021917,2]
[356012782,1741795842389,-785.88,0.00021917,2]
[356012783,1741795842398,-509.16483294,0.00021917,2]
[356012784,1741795842408,-565.83,0.00021917,2]
[356012786,1741795842417,-500.89211243,0.00021917,2]
[356012788,1741795842426,-500.0,0.00021917,2]
[356012790,1741795842436,-505.49271059,0.00021917,2]
[356012791,1741795842445,-500.0,0.00021917,2]
[356012792,1741795842454,-3751.67,0.00021917,2]
[356012793,1741795842463,-500.0,0.00021917,2]
[356012794,1741795842473,-1322.82,0.00021917,2]
[356012795,1741795842482,-525.48361196,0.00021917,2]
[356012796,1741795842491,-500.0,0.00021917,2]
[356012797,1741795842501,-500.0,0.00021917,2]
[356012798,1741795842510,-500.0,0.00021917,2]
[356012799,1741795842520,-500.0,0.00021917,2]
[356012800,1741795842530,-500.0,0.00021917,2]
[356012801,1741795842539,-500.0,0.00021917,2]
[356012802,1741795842549,-500.0,0.00021917,2]
[356012803,1741795842558,-500.0,0.00021917,2]
[356012804,1741795842567,-500.0,0.00021917,2]
[356012805,1741795842577,-1115.31,0.00021917,2]
[356012806,1741795842587,-500.0,0.00021917,2]
[356012807,1741795842596,-500.0,0.00021917,2]
[356012808,1741795842606,-511.76007996,0.00021917,2]
[356012809,1741795842616,-1142.99,0.00021917,2]
[356012810,1741795842625,-500.0,0.00021917,2]
[356012811,1741795842635,-888.52,0.00021917,2]
[356012812,1741795842644,-500.0,0.00021917,2]
[356012813,1741795842654,-500.0,0.00021917,2]
[356012814,1741795842663,-500.0,0.00021917,2]
[356012815,1741795842673,-500.0,0.00021917,2]
[356012816,1741795842682,-500.0,0.00021917,2]
[356012817,1741795842692,-23620.97,0.00021917,2]
[356012818,1741795842701,-1185.4,0.00021917,2]
[356012819,1741795842710,-1257.36,0.00021917,2]
[356012820,1741795842720,-586.2877314,0.00021917,2]
[356012821,1741795842729,-500.0,0.00021917,2]
[356012822,1741795842739,-254.53355088,0.00021917,2]
[356012823,1741795842748,-500.0,0.00021917,2]
[356012824,1741795842758,-500.0,0.00021917,2]
[356012825,1741795842767,-500.0,0.00021917,2]
[356012826,1741795842777,-514.65951519,0.00021917,2]
[356012827,1741795842787,-500.0,0.00021917,2]
[356012828,1741795842797,-500.0,0.00021917,2]
[356012829,1741795842806,-500.0,0.00021917,2]